[Event "Titled Tuesday Blitz January 03 Late 2023"]
[White "Rustemov, Alexander"]
[Black "Rangel, Daniel"]
[WhiteFideId "4119002"]
[BlackFideId "2124475"]
[WhiteElo "2525"]
[BlackElo "2207"]
[Result "1-0"]
[Round "06"]
[TimeControl "180+2"]
[Date "2023.01.03"]
[WhiteClock "0:01:07"]
[BlackClock "0:00:12"]

1. d4 {[%clk 0:02:57]}  d5 {[%clk 0:02:59]} 2. c4 {[%clk 0:02:55]}  c6 {[%clk 0:02:59]} 3. Nc3 {[%clk 0:02:54]}  Nf6 {[%clk 0:02:59]} 4. e3 {[%clk 0:02:55]}  e6 {[%clk 0:02:58]} 5. Nf3 {[%clk 0:02:54]}  Nbd7 {[%clk 0:02:56]} 6. Qc2 {[%clk 0:02:55]}  Bd6 {[%clk 0:02:55]} 7. b3 {[%clk 0:02:55]}  O-O {[%clk 0:02:54]} 8. Be2 {[%clk 0:02:55]}  Qe7 {[%clk 0:02:54]} 9. O-O {[%clk 0:02:55]}  e5 {[%clk 0:02:54]} 10. cxd5 {[%clk 0:02:48]}  cxd5 {[%clk 0:02:54]} 11. Nb5 {[%clk 0:02:40]}  Re8 {[%clk 0:02:24]} 12. Nxd6 {[%clk 0:02:36]}  Qxd6 {[%clk 0:02:25]} 13. dxe5 {[%clk 0:02:34]}  Nxe5 {[%clk 0:02:26]} 14. Bb2 {[%clk 0:02:34]}  Nxf3+ {[%clk 0:02:17]} 15. Bxf3 {[%clk 0:02:34]}  Be6 {[%clk 0:02:16]} 16. Rfd1 {[%clk 0:02:24]}  Rac8 {[%clk 0:02:13]} 17. Qe2 {[%clk 0:02:20]}  Red8 {[%clk 0:02:05]} 18. Bxf6 {[%clk 0:02:17]}  gxf6 {[%clk 0:02:05]} 19. Rd4 {[%clk 0:02:14]}  Qc5 {[%clk 0:01:56]} 20. Rad1 {[%clk 0:02:13]}  Qc2 {[%clk 0:01:52]} 21. R4d2 {[%clk 0:02:11]}  Qc5 {[%clk 0:01:50]} 22. h3 {[%clk 0:02:10]}  Rc7 {[%clk 0:01:43]} 23. Rd4 {[%clk 0:02:08]}  Qc2 {[%clk 0:01:42]} 24. R1d2 {[%clk 0:02:07]}  Qc1+ {[%clk 0:01:32]} 25. Kh2 {[%clk 0:02:06]}  Qc5 {[%clk 0:01:33]} 26. g3 {[%clk 0:02:05]}  Rcd7 {[%clk 0:01:31]} 27. Kg2 {[%clk 0:02:04]}  Kg7 {[%clk 0:01:28]} 28. Qd1 {[%clk 0:02:04]}  Qa5 {[%clk 0:01:04]} 29. h4 {[%clk 0:01:56]}  Qc5 {[%clk 0:01:02]} 30. b4 {[%clk 0:01:56]}  Qb5 {[%clk 0:00:57]} 31. a4 {[%clk 0:01:55]}  Qc6 {[%clk 0:00:55]} 32. Be2 {[%clk 0:01:46]}  Qc7 {[%clk 0:00:52]} 33. Bd3 {[%clk 0:01:39]}  Qe5 {[%clk 0:00:48]} 34. Be2 {[%clk 0:01:31]}  Qf5 {[%clk 0:00:44]} 35. Bf3 {[%clk 0:01:29]}  Qh3+ {[%clk 0:00:43]} 36. Kg1 {[%clk 0:01:29]}  Qf5 {[%clk 0:00:43]} 37. a5 {[%clk 0:01:27]}  Qe5 {[%clk 0:00:42]} 38. Kg2 {[%clk 0:01:25]}  Kh8 {[%clk 0:00:27]} 39. Kh2 {[%clk 0:01:25]}  Kg7 {[%clk 0:00:27]} 40. Bg2 {[%clk 0:01:25]}  Qf5 {[%clk 0:00:25]} 41. Qf3 {[%clk 0:01:24]}  Qxf3 {[%clk 0:00:22]} 42. Bxf3 {[%clk 0:01:24]}  Kf8 {[%clk 0:00:22]} 43. g4 {[%clk 0:01:20]}  Ke7 {[%clk 0:00:22]} 44. Kg3 {[%clk 0:01:20]}  b6 {[%clk 0:00:22]} 45. axb6 {[%clk 0:01:16]}  axb6 {[%clk 0:00:23]} 46. Kf4 {[%clk 0:01:16]}  Kd6 {[%clk 0:00:23]} 47. Bxd5 {[%clk 0:01:14]}  Ke7 {[%clk 0:00:17]} 48. Bxe6 {[%clk 0:01:13]}  Rxd4+ {[%clk 0:00:17]} 49. Rxd4 {[%clk 0:01:13]}  Rxd4+ {[%clk 0:00:17]} 50. exd4 {[%clk 0:01:14]}  fxe6 {[%clk 0:00:18]} 51. Ke4 {[%clk 0:01:10]}  Kd6 {[%clk 0:00:18]} 52. f4 {[%clk 0:01:09]}  Kc6 {[%clk 0:00:13]} 53. g5 {[%clk 0:01:07]}  f5+ {[%clk 0:00:09]} 54. Ke5 {[%clk 0:01:07]}  Kb5 {[%clk 0:00:10]} 55. h5 {[%clk 0:01:07]}  Kxb4 {[%clk 0:00:11]} 56. g6 {[%clk 0:01:07]}  Kc4 {[%clk 0:00:12]} 1-0


[Site "https://www.chess.com"]

[Event "Titled Tuesday Blitz January 03 Late 2023"]
[White "Sanchez, Robert"]
[Black "Nasuta, Grzegorz"]
[WhiteFideId "2034360"]
[BlackFideId "1141686"]
[WhiteElo "1966"]
[BlackElo "2552"]
[Result "0-1"]
[Round "06"]
[TimeControl "180+2"]
[Date "2023.01.03"]
[WhiteClock "0:01:09"]
[BlackClock "0:01:30"]

1. e4 {[%clk 0:03:00]}  c5 {[%clk 0:02:57]} 2. Nf3 {[%clk 0:03:01]}  e6 {[%clk 0:02:56]} 3. d4 {[%clk 0:03:01]}  cxd4 {[%clk 0:02:57]} 4. Nxd4 {[%clk 0:03:02]}  Nf6 {[%clk 0:02:58]} 5. Nc3 {[%clk 0:03:02]}  d6 {[%clk 0:02:57]} 6. Be3 {[%clk 0:03:02]}  a6 {[%clk 0:02:52]} 7. f3 {[%clk 0:03:02]}  b5 {[%clk 0:02:52]} 8. Qd2 {[%clk 0:03:03]}  Bb7 {[%clk 0:02:53]} 9. O-O-O {[%clk 0:03:03]}  Nbd7 {[%clk 0:02:53]} 10. g4 {[%clk 0:03:03]}  Nb6 {[%clk 0:02:54]} 11. g5 {[%clk 0:02:56]}  Nfd7 {[%clk 0:02:54]} 12. h4 {[%clk 0:02:53]}  Rc8 {[%clk 0:02:54]} 13. Bd3 {[%clk 0:02:50]}  Ne5 {[%clk 0:02:54]} 14. b3 {[%clk 0:02:34]}  d5 {[%clk 0:02:51]} 15. Nce2 {[%clk 0:02:26]}  Ba3+ {[%clk 0:02:38]} 16. Kb1 {[%clk 0:02:26]}  Nbc4 {[%clk 0:02:36]} 17. bxc4 {[%clk 0:02:26]}  bxc4 {[%clk 0:02:36]} 18. Nb3 {[%clk 0:02:12]}  cxb3 {[%clk 0:02:20]} 19. Nd4 {[%clk 0:01:49]}  bxa2+ {[%clk 0:01:53]} 20. Kxa2 {[%clk 0:01:43]}  Be7 {[%clk 0:01:53]} 21. Rb1 {[%clk 0:01:34]}  Qd7 {[%clk 0:01:37]} 22. Qa5 {[%clk 0:01:29]}  Nc4 {[%clk 0:01:32]} 23. Bxc4 {[%clk 0:01:29]}  Rxc4 {[%clk 0:01:32]} 24. Qb6 {[%clk 0:01:12]}  Qa4+ {[%clk 0:01:29]} 25. Kb2 {[%clk 0:01:09]}  Qa3# {[%clk 0:01:30]} 0-1


[Site "https://www.chess.com"]

[Event "Titled Tuesday Blitz January 03 Late 2023"]
[White "Jaferian, Koosha"]
[Black "AidenRchess"]
[WhiteFideId "12507440"]
[WhiteElo "2233"]
[BlackElo "2398"]
[Result "0-1"]
[Round "06"]
[TimeControl "180+2"]
[Date "2023.01.03"]
[WhiteClock "0:00:57"]
[BlackClock "0:00:53"]

1. d4 {[%clk 0:03:00]}  Nf6 {[%clk 0:02:57]} 2. Bg5 {[%clk 0:02:59]}  c5 {[%clk 0:02:52]} 3. d5 {[%clk 0:02:57]}  d6 {[%clk 0:02:52]} 4. Nc3 {[%clk 0:02:56]}  g6 {[%clk 0:02:50]} 5. Bxf6 {[%clk 0:02:55]}  exf6 {[%clk 0:02:50]} 6. e4 {[%clk 0:02:51]}  Bg7 {[%clk 0:02:49]} 7. Bd3 {[%clk 0:02:33]}  O-O {[%clk 0:02:47]} 8. Nge2 {[%clk 0:02:33]}  a6 {[%clk 0:02:40]} 9. a4 {[%clk 0:02:33]}  Nd7 {[%clk 0:02:32]} 10. f4 {[%clk 0:02:28]}  Re8 {[%clk 0:02:17]} 11. O-O {[%clk 0:02:26]}  Qb6 {[%clk 0:01:58]} 12. Bc4 {[%clk 0:02:15]}  Qb4 {[%clk 0:01:51]} 13. a5 {[%clk 0:01:57]}  b5 {[%clk 0:01:35]} 14. axb6 {[%clk 0:01:40]}  Nxb6 {[%clk 0:01:32]} 15. Bb3 {[%clk 0:01:19]}  f5 {[%clk 0:01:31]} 16. Ng3 {[%clk 0:01:13]}  fxe4 {[%clk 0:01:25]} 17. Ngxe4 {[%clk 0:01:13]}  Rxe4 {[%clk 0:01:12]} 18. Nxe4 {[%clk 0:01:13]}  Qxe4 {[%clk 0:01:12]} 19. Re1 {[%clk 0:01:14]}  Qd4+ {[%clk 0:01:12]} 20. Kh1 {[%clk 0:01:11]}  Bf5 {[%clk 0:01:07]} 21. Qf3 {[%clk 0:01:05]}  c4 {[%clk 0:01:03]} 22. Ba4 {[%clk 0:01:01]}  Nxa4 {[%clk 0:01:02]} 23. Rxa4 {[%clk 0:01:02]}  Bxc2 {[%clk 0:00:59]} 24. Rb4 {[%clk 0:00:57]}  Qd2 {[%clk 0:00:53]} 0-1


[Site "https://www.chess.com"]

[Event "Titled Tuesday Blitz January 03 Late 2023"]
[White "Suvorov, Alexander"]
[Black "Paravyan, David"]
[WhiteFideId "12977063"]
[BlackFideId "4194985"]
[WhiteElo "2338"]
[BlackElo "2601"]
[Result "0-1"]
[Round "06"]
[TimeControl "180+2"]
[Date "2023.01.03"]
[WhiteClock "0:00:04"]
[BlackClock "0:02:18"]

1. d4 {[%clk 0:03:00]}  Nf6 {[%clk 0:03:00]} 2. Nf3 {[%clk 0:03:00]}  g6 {[%clk 0:03:00]} 3. Nbd2 {[%clk 0:02:54]}  d5 {[%clk 0:03:00]} 4. e3 {[%clk 0:02:55]}  Bg7 {[%clk 0:03:01]} 5. b4 {[%clk 0:02:55]}  a5 {[%clk 0:03:01]} 6. b5 {[%clk 0:02:55]}  c5 {[%clk 0:03:01]} 7. bxc6 {[%clk 0:02:55]}  Nxc6 {[%clk 0:03:02]} 8. c4 {[%clk 0:02:42]}  O-O {[%clk 0:03:01]} 9. Be2 {[%clk 0:02:42]}  dxc4 {[%clk 0:02:59]} 10. Nxc4 {[%clk 0:02:43]}  b5 {[%clk 0:02:59]} 11. Nce5 {[%clk 0:02:39]}  Nxe5 {[%clk 0:03:00]} 12. Nxe5 {[%clk 0:02:40]}  b4 {[%clk 0:02:58]} 13. O-O {[%clk 0:02:30]}  Nd5 {[%clk 0:02:57]} 14. Bf3 {[%clk 0:02:26]}  Nc3 {[%clk 0:02:51]} 15. Qd2 {[%clk 0:02:18]}  Ba6 {[%clk 0:02:47]} 16. Nc6 {[%clk 0:01:58]}  Qd6 {[%clk 0:02:44]} 17. Re1 {[%clk 0:01:59]}  Bb7 {[%clk 0:02:39]} 18. Ne5 {[%clk 0:01:39]}  Bxf3 {[%clk 0:02:39]} 19. Nxf3 {[%clk 0:01:38]}  Rac8 {[%clk 0:02:40]} 20. Qd3 {[%clk 0:01:33]}  e5 {[%clk 0:02:38]} 21. Qd2 {[%clk 0:01:12]}  Rfd8 {[%clk 0:02:38]} 22. Bb2 {[%clk 0:01:12]}  Qd5 {[%clk 0:02:33]} 23. Bxc3 {[%clk 0:01:06]}  bxc3 {[%clk 0:02:34]} 24. Qc2 {[%clk 0:01:06]}  exd4 {[%clk 0:02:34]} 25. exd4 {[%clk 0:01:07]}  Bf6 {[%clk 0:02:34]} 26. h3 {[%clk 0:01:03]}  Kg7 {[%clk 0:02:33]} 27. Red1 {[%clk 0:01:02]}  Rc4 {[%clk 0:02:31]} 28. Rd3 {[%clk 0:01:01]}  Rdc8 {[%clk 0:02:31]} 29. Rb1 {[%clk 0:01:00]}  Rb4 {[%clk 0:02:30]} 30. Rb3 {[%clk 0:00:57]}  Rxb3 {[%clk 0:02:22]} 31. axb3 {[%clk 0:00:58]}  Qe4 {[%clk 0:02:20]} 32. Ne5 {[%clk 0:00:03]}  Bxe5 {[%clk 0:02:17]} 33. dxe5 {[%clk 0:00:03]}  Qxd3 {[%clk 0:02:17]} 34. Qxd3 {[%clk 0:00:04]}  c2 {[%clk 0:02:18]} 35. e6 {[%clk 0:00:05]}  c1=Q+ {[%clk 0:02:18]} 36. Kh2 {[%clk 0:00:05]}  Qc7+ {[%clk 0:02:18]} 37. g3 {[%clk 0:00:04]}  Qc5 {[%clk 0:02:18]} 0-1


[Site "https://www.chess.com"]

[Event "Titled Tuesday Blitz January 03 Late 2023"]
[White "Krsnik Cohar, Ivan Vihor"]
[Black "Svane, Rasmus"]
[WhiteFideId "14520044"]
[BlackFideId "4657101"]
[WhiteElo "2336"]
[BlackElo "2623"]
[Result "0-1"]
[Round "06"]
[TimeControl "180+2"]
[Date "2023.01.03"]
[WhiteClock "0:00:07"]
[BlackClock "0:01:25"]

1. e4 {[%clk 0:03:00]}  c6 {[%clk 0:03:00]} 2. Nf3 {[%clk 0:02:58]}  d5 {[%clk 0:03:00]} 3. exd5 {[%clk 0:02:58]}  cxd5 {[%clk 0:03:01]} 4. d4 {[%clk 0:02:58]}  Nc6 {[%clk 0:03:02]} 5. Bb5 {[%clk 0:02:58]}  Bg4 {[%clk 0:03:00]} 6. h3 {[%clk 0:02:58]}  Bxf3 {[%clk 0:02:55]} 7. Qxf3 {[%clk 0:02:59]}  e6 {[%clk 0:02:56]} 8. c4 {[%clk 0:02:49]}  Bb4+ {[%clk 0:02:44]} 9. Bd2 {[%clk 0:02:47]}  Bxd2+ {[%clk 0:02:43]} 10. Nxd2 {[%clk 0:02:47]}  Ne7 {[%clk 0:02:43]} 11. cxd5 {[%clk 0:02:44]}  Nxd5 {[%clk 0:02:29]} 12. Rc1 {[%clk 0:02:33]}  Rc8 {[%clk 0:02:25]} 13. O-O {[%clk 0:02:06]}  O-O {[%clk 0:02:24]} 14. Bxc6 {[%clk 0:02:06]}  Rxc6 {[%clk 0:02:25]} 15. Rxc6 {[%clk 0:02:05]}  bxc6 {[%clk 0:02:26]} 16. a3 {[%clk 0:01:15]}  Qb6 {[%clk 0:02:25]} 17. Qd3 {[%clk 0:00:48]}  Qxb2 {[%clk 0:02:07]} 18. Rb1 {[%clk 0:00:37]}  Qa2 {[%clk 0:02:07]} 19. Rb7 {[%clk 0:00:29]}  a5 {[%clk 0:01:45]} 20. Nc4 {[%clk 0:00:20]}  Nf4 {[%clk 0:01:37]} 21. Qe4 {[%clk 0:00:07]}  Ne2+ {[%clk 0:01:33]} 22. Kf1 {[%clk 0:00:07]}  Nc3 {[%clk 0:01:25]} 0-1


[Site "https://www.chess.com"]

[Event "Titled Tuesday Blitz January 03 Late 2023"]
[White "Maksimovic, Bojan"]
[Black "Mendez Fortes, Eduardo Jesus"]
[WhiteFideId "14408120"]
[BlackFideId "3502376"]
[WhiteElo "2486"]
[BlackElo "2250"]
[Result "1-0"]
[Round "06"]
[TimeControl "180+2"]
[Date "2023.01.03"]
[WhiteClock "0:00:45"]
[BlackClock "0:00:52"]

1. g3 {[%clk 0:03:00]}  d5 {[%clk 0:02:59]} 2. Bg2 {[%clk 0:03:00]}  Nf6 {[%clk 0:03:00]} 3. Nf3 {[%clk 0:03:00]}  e6 {[%clk 0:03:01]} 4. O-O {[%clk 0:03:00]}  c5 {[%clk 0:02:58]} 5. c4 {[%clk 0:03:00]}  d4 {[%clk 0:02:56]} 6. e3 {[%clk 0:02:59]}  Nc6 {[%clk 0:02:56]} 7. exd4 {[%clk 0:02:59]}  cxd4 {[%clk 0:02:57]} 8. d3 {[%clk 0:02:59]}  h6 {[%clk 0:02:55]} 9. Re1 {[%clk 0:02:59]}  Be7 {[%clk 0:02:56]} 10. Na3 {[%clk 0:02:58]}  Nd7 {[%clk 0:02:49]} 11. Nc2 {[%clk 0:02:57]}  e5 {[%clk 0:02:49]} 12. b4 {[%clk 0:02:54]}  Nxb4 {[%clk 0:02:36]} 13. Nxe5 {[%clk 0:02:42]}  Nxc2 {[%clk 0:02:36]} 14. Qxc2 {[%clk 0:02:19]}  Nc5 {[%clk 0:02:36]} 15. Rb1 {[%clk 0:01:55]}  O-O {[%clk 0:02:24]} 16. Ba3 {[%clk 0:01:43]}  Qa5 {[%clk 0:02:23]} 17. Bb4 {[%clk 0:01:41]}  Qc7 {[%clk 0:02:22]} 18. Bd5 {[%clk 0:01:38]}  a5 {[%clk 0:02:19]} 19. Bxc5 {[%clk 0:01:33]}  Bxc5 {[%clk 0:02:18]} 20. Rb5 {[%clk 0:01:22]}  Ra6 {[%clk 0:02:13]} 21. Nxf7 {[%clk 0:01:17]}  Rxf7 {[%clk 0:02:08]} 22. Rxc5 {[%clk 0:01:15]}  Qxc5 {[%clk 0:02:08]} 23. Re8+ {[%clk 0:01:14]}  Kh7 {[%clk 0:02:06]} 24. Bxf7 {[%clk 0:01:12]}  Rf6 {[%clk 0:02:01]} 25. Bg8+ {[%clk 0:01:04]}  Kg6 {[%clk 0:02:01]} 26. Bd5 {[%clk 0:01:04]}  Bf5 {[%clk 0:01:47]} 27. Qe2 {[%clk 0:01:01]}  b5 {[%clk 0:01:23]} 28. g4 {[%clk 0:01:00]}  Bd7 {[%clk 0:00:53]} 29. Qe4+ {[%clk 0:00:48]}  Kg5 {[%clk 0:00:53]} 30. Re5+ {[%clk 0:00:47]}  Kh4 {[%clk 0:00:52]} 31. Rh5# {[%clk 0:00:45]} 1-0


[Site "https://www.chess.com"]

[Event "Titled Tuesday Blitz January 03 Late 2023"]
[White "Goryachkina, Aleksandra"]
[Black "Bayo Milagro, Alvaro"]
[WhiteFideId "4147103"]
[BlackFideId "22275240"]
[WhiteElo "2571"]
[BlackElo "2287"]
[Result "1-0"]
[Round "06"]
[TimeControl "180+2"]
[Date "2023.01.03"]
[WhiteClock "0:01:14"]
[BlackClock "0:00:20"]

1. e4 {[%clk 0:03:00]}  e5 {[%clk 0:02:59]} 2. Nc3 {[%clk 0:02:59]}  Nf6 {[%clk 0:02:59]} 3. d4 {[%clk 0:02:58]}  exd4 {[%clk 0:02:52]} 4. Qxd4 {[%clk 0:02:59]}  Nc6 {[%clk 0:02:52]} 5. Qd3 {[%clk 0:02:59]}  g6 {[%clk 0:02:51]} 6. Bg5 {[%clk 0:02:54]}  h6 {[%clk 0:02:50]} 7. Bh4 {[%clk 0:02:52]}  Bg7 {[%clk 0:02:50]} 8. O-O-O {[%clk 0:02:51]}  O-O {[%clk 0:02:50]} 9. f4 {[%clk 0:02:50]}  d6 {[%clk 0:02:50]} 10. Nf3 {[%clk 0:02:47]}  Bg4 {[%clk 0:02:30]} 11. Nd5 {[%clk 0:02:34]}  a5 {[%clk 0:02:21]} 12. a3 {[%clk 0:02:32]}  Bxf3 {[%clk 0:01:44]} 13. Qxf3 {[%clk 0:02:24]}  Re8 {[%clk 0:01:30]} 14. e5 {[%clk 0:02:21]}  dxe5 {[%clk 0:01:24]} 15. Nxf6+ {[%clk 0:02:21]}  Bxf6 {[%clk 0:01:24]} 16. Rxd8 {[%clk 0:02:21]}  Bxd8 {[%clk 0:01:24]} 17. Bxd8 {[%clk 0:02:20]}  Raxd8 {[%clk 0:01:24]} 18. Bd3 {[%clk 0:01:56]}  e4 {[%clk 0:01:15]} 19. Bxe4 {[%clk 0:01:52]}  Nd4 {[%clk 0:01:16]} 20. Qd3 {[%clk 0:01:48]}  b5 {[%clk 0:00:55]} 21. Kb1 {[%clk 0:01:44]}  c5 {[%clk 0:00:55]} 22. Bxg6 {[%clk 0:01:34]}  fxg6 {[%clk 0:00:50]} 23. Qxg6+ {[%clk 0:01:34]}  Kf8 {[%clk 0:00:50]} 24. Qxh6+ {[%clk 0:01:33]}  Kg8 {[%clk 0:00:50]} 25. Qg6+ {[%clk 0:01:32]}  Kf8 {[%clk 0:00:50]} 26. f5 {[%clk 0:01:31]}  Re2 {[%clk 0:00:28]} 27. f6 {[%clk 0:01:28]}  Rd7 {[%clk 0:00:28]} 28. Rf1 {[%clk 0:01:21]}  Nxc2 {[%clk 0:00:20]} 29. f7 {[%clk 0:01:14]} 1-0


[Site "https://www.chess.com"]

[Event "Titled Tuesday Blitz January 03 Late 2023"]
[White "Tristan, Leonardo"]
[Black "Bilan, Danila"]
[WhiteFideId "113816"]
[BlackFideId "24161918"]
[WhiteElo "2545"]
[BlackElo "2303"]
[Result "0-1"]
[Round "06"]
[TimeControl "180+2"]
[Date "2023.01.03"]
[WhiteClock "0:00:12"]
[BlackClock "0:00:12"]

1. d4 {[%clk 0:03:00]}  d5 {[%clk 0:02:59]} 2. Nf3 {[%clk 0:03:01]}  Nf6 {[%clk 0:02:59]} 3. Bf4 {[%clk 0:03:01]}  c5 {[%clk 0:02:59]} 4. e3 {[%clk 0:03:02]}  Nc6 {[%clk 0:02:58]} 5. Nbd2 {[%clk 0:03:02]}  cxd4 {[%clk 0:02:58]} 6. exd4 {[%clk 0:03:02]}  Bg4 {[%clk 0:02:59]} 7. c3 {[%clk 0:03:02]}  e6 {[%clk 0:02:59]} 8. Qb3 {[%clk 0:03:02]}  Qc8 {[%clk 0:02:59]} 9. Bd3 {[%clk 0:03:03]}  Be7 {[%clk 0:02:59]} 10. O-O {[%clk 0:03:03]}  O-O {[%clk 0:02:59]} 11. Rae1 {[%clk 0:03:03]}  Bh5 {[%clk 0:02:59]} 12. Ne5 {[%clk 0:03:03]}  Nxe5 {[%clk 0:02:49]} 13. dxe5 {[%clk 0:02:55]}  Nd7 {[%clk 0:02:47]} 14. Qc2 {[%clk 0:02:44]}  Bg6 {[%clk 0:02:46]} 15. Bxg6 {[%clk 0:02:43]}  hxg6 {[%clk 0:02:47]} 16. Nf3 {[%clk 0:02:41]}  Qc4 {[%clk 0:02:43]} 17. Nd4 {[%clk 0:02:38]}  Rfc8 {[%clk 0:02:18]} 18. Qb1 {[%clk 0:02:27]}  Nc5 {[%clk 0:02:11]} 19. Re3 {[%clk 0:02:23]}  Ne4 {[%clk 0:01:59]} 20. Rfe1 {[%clk 0:02:12]}  Bc5 {[%clk 0:01:43]} 21. Rd3 {[%clk 0:02:12]}  Bxd4 {[%clk 0:01:27]} 22. Rxd4 {[%clk 0:02:11]}  Qa6 {[%clk 0:01:21]} 23. h4 {[%clk 0:02:02]}  Rc4 {[%clk 0:01:15]} 24. Be3 {[%clk 0:01:16]}  Rac8 {[%clk 0:01:00]} 25. a3 {[%clk 0:01:12]}  Nc5 {[%clk 0:00:57]} 26. Qd1 {[%clk 0:01:04]}  Qb5 {[%clk 0:00:50]} 27. Qe2 {[%clk 0:00:50]}  a6 {[%clk 0:00:42]} 28. Rxc4 {[%clk 0:00:46]}  Qxc4 {[%clk 0:00:40]} 29. Qxc4 {[%clk 0:00:41]}  dxc4 {[%clk 0:00:41]} 30. Bxc5 {[%clk 0:00:41]}  Rxc5 {[%clk 0:00:41]} 31. f4 {[%clk 0:00:34]}  Rd5 {[%clk 0:00:40]} 32. Re2 {[%clk 0:00:21]}  Kf8 {[%clk 0:00:39]} 33. Kf2 {[%clk 0:00:22]}  Ke7 {[%clk 0:00:39]} 34. Kf3 {[%clk 0:00:22]}  Kd7 {[%clk 0:00:37]} 35. Ke4 {[%clk 0:00:19]}  Kc6 {[%clk 0:00:29]} 36. g4 {[%clk 0:00:18]}  Rd3 {[%clk 0:00:28]} 37. f5 {[%clk 0:00:14]}  gxf5+ {[%clk 0:00:24]} 38. gxf5 {[%clk 0:00:15]}  Rh3 {[%clk 0:00:24]} 39. Rg2 {[%clk 0:00:06]}  Rxh4+ {[%clk 0:00:23]} 40. Kf3 {[%clk 0:00:03]}  Rh7 {[%clk 0:00:21]} 41. Kf4 {[%clk 0:00:01]}  b5 {[%clk 0:00:17]} 42. fxe6 {[%clk 0:00:02]}  fxe6 {[%clk 0:00:17]} 43. Kg5 {[%clk 0:00:02]}  Kd5 {[%clk 0:00:16]} 44. Kg6 {[%clk 0:00:03]}  Rh3 {[%clk 0:00:14]} 45. Re2 {[%clk 0:00:04]}  Rh4 {[%clk 0:00:13]} 46. Kf7 {[%clk 0:00:04]}  Re4 {[%clk 0:00:07]} 47. Rd2+ {[%clk 0:00:04]}  Kxe5 {[%clk 0:00:07]} 48. Kxg7 {[%clk 0:00:05]}  Rf4 {[%clk 0:00:06]} 49. Kg6 {[%clk 0:00:05]}  Ke4 {[%clk 0:00:05]} 50. Kg5 {[%clk 0:00:06]}  Rf5+ {[%clk 0:00:05]} 51. Kg4 {[%clk 0:00:06]}  Ke5 {[%clk 0:00:06]} 52. Rd7 {[%clk 0:00:05]}  Rf2 {[%clk 0:00:04]} 53. Ra7 {[%clk 0:00:06]}  Rxb2 {[%clk 0:00:05]} 54. Rxa6 {[%clk 0:00:07]}  Rb3 {[%clk 0:00:05]} 55. Ra5 {[%clk 0:00:07]}  Ke4 {[%clk 0:00:06]} 56. a4 {[%clk 0:00:08]}  bxa4 {[%clk 0:00:04]} 57. Rxa4 {[%clk 0:00:08]}  Rxc3 {[%clk 0:00:05]} 58. Ra6 {[%clk 0:00:08]}  e5 {[%clk 0:00:05]} 59. Rd6 {[%clk 0:00:08]}  Rd3 {[%clk 0:00:06]} 60. Rc6 {[%clk 0:00:08]}  c3 {[%clk 0:00:06]} 61. Rc4+ {[%clk 0:00:08]}  Ke3 {[%clk 0:00:07]} 62. Kf5 {[%clk 0:00:09]}  e4 {[%clk 0:00:08]} 63. Rxe4+ {[%clk 0:00:09]}  Kd2 {[%clk 0:00:09]} 64. Rh4 {[%clk 0:00:09]}  c2 {[%clk 0:00:09]} 65. Rh2+ {[%clk 0:00:10]}  Kc3 {[%clk 0:00:10]} 66. Rh1 {[%clk 0:00:11]}  Rd1 {[%clk 0:00:10]} 67. Rh3+ {[%clk 0:00:11]}  Kb2 {[%clk 0:00:11]} 68. Rh2 {[%clk 0:00:12]}  Kb1 {[%clk 0:00:11]} 69. Rd2 {[%clk 0:00:12]}  Rxd2 {[%clk 0:00:12]} 0-1


[Site "https://www.chess.com"]

[Event "Titled Tuesday Blitz January 03 Late 2023"]
[White "Domingo Nunez, Ruben"]
[Black "Brodowski, Piotr"]
[WhiteFideId "22245570"]
[BlackFideId "1124480"]
[WhiteElo "2416"]
[BlackElo "2457"]
[Result "0-1"]
[Round "06"]
[TimeControl "180+2"]
[Date "2023.01.03"]
[WhiteClock "0:00:02"]
[BlackClock "0:00:03"]

1. e4 {[%clk 0:02:59]}  d6 {[%clk 0:02:59]} 2. d4 {[%clk 0:03:00]}  g6 {[%clk 0:02:59]} 3. Nc3 {[%clk 0:03:01]}  Bg7 {[%clk 0:02:59]} 4. h4 {[%clk 0:03:01]}  h6 {[%clk 0:02:58]} 5. Be3 {[%clk 0:03:00]}  a6 {[%clk 0:02:57]} 6. a4 {[%clk 0:03:00]}  Nd7 {[%clk 0:02:52]} 7. Qd2 {[%clk 0:03:00]}  e5 {[%clk 0:02:52]} 8. Bc4 {[%clk 0:02:59]}  Ngf6 {[%clk 0:02:50]} 9. f3 {[%clk 0:02:59]}  exd4 {[%clk 0:02:36]} 10. Bxd4 {[%clk 0:03:00]}  O-O {[%clk 0:02:32]} 11. Nge2 {[%clk 0:02:56]}  Ne5 {[%clk 0:02:32]} 12. Bb3 {[%clk 0:02:56]}  Kh7 {[%clk 0:02:14]} 13. Bxe5 {[%clk 0:02:42]}  dxe5 {[%clk 0:02:15]} 14. Qxd8 {[%clk 0:02:43]}  Rxd8 {[%clk 0:02:16]} 15. Bxf7 {[%clk 0:02:44]}  Nh5 {[%clk 0:02:10]} 16. g4 {[%clk 0:02:43]}  Nf4 {[%clk 0:02:09]} 17. Nxf4 {[%clk 0:02:39]}  exf4 {[%clk 0:02:09]} 18. h5 {[%clk 0:02:38]}  gxh5 {[%clk 0:02:06]} 19. gxh5 {[%clk 0:02:38]}  Bd7 {[%clk 0:01:59]} 20. Nd5 {[%clk 0:02:23]}  Bxb2 {[%clk 0:01:53]} 21. Rb1 {[%clk 0:02:23]}  Be5 {[%clk 0:01:53]} 22. Rxb7 {[%clk 0:02:21]}  Bc6 {[%clk 0:01:52]} 23. Rb1 {[%clk 0:02:04]}  Bxa4 {[%clk 0:01:51]} 24. Rg1 {[%clk 0:01:54]}  c6 {[%clk 0:01:43]} 25. Rb7 {[%clk 0:01:47]}  Kh8 {[%clk 0:01:37]} 26. Rg6 {[%clk 0:00:51]}  cxd5 {[%clk 0:01:33]} 27. Rxh6+ {[%clk 0:00:38]}  Kg7 {[%clk 0:01:24]} 28. Rg6+ {[%clk 0:00:39]}  Kh8 {[%clk 0:01:21]} 29. Be6 {[%clk 0:00:27]}  Bc3+ {[%clk 0:01:00]} 30. Kf1 {[%clk 0:00:25]}  Bb5+ {[%clk 0:00:52]} 31. Kf2 {[%clk 0:00:24]}  Bd4+ {[%clk 0:00:51]} 32. Ke1 {[%clk 0:00:20]}  Bc3+ {[%clk 0:00:51]} 33. Kd1 {[%clk 0:00:17]}  dxe4+ {[%clk 0:00:49]} 34. Kc1 {[%clk 0:00:17]}  Bd7 {[%clk 0:00:26]} 35. Rh6+ {[%clk 0:00:18]}  Kg7 {[%clk 0:00:23]} 36. Rg6+ {[%clk 0:00:18]}  Kf8 {[%clk 0:00:21]} 37. Bxd7 {[%clk 0:00:11]}  Rab8 {[%clk 0:00:21]} 38. Rxb8 {[%clk 0:00:09]}  Rxb8 {[%clk 0:00:21]} 39. fxe4 {[%clk 0:00:10]}  f3 {[%clk 0:00:22]} 40. Be6 {[%clk 0:00:09]}  f2 {[%clk 0:00:19]} 41. Bc4 {[%clk 0:00:10]}  Rb4 {[%clk 0:00:19]} 42. Bd3 {[%clk 0:00:09]}  Rxe4 {[%clk 0:00:14]} 43. Kb1 {[%clk 0:00:08]}  a5 {[%clk 0:00:03]} 44. Rc6 {[%clk 0:00:02]}  Re1+ {[%clk 0:00:02]} 45. Ka2 {[%clk 0:00:02]}  Bd2 {[%clk 0:00:02]} 46. Rc8+ {[%clk 0:00:01]}  Ke7 {[%clk 0:00:03]} 47. Rc7+ {[%clk 0:00:02]}  Kf6 {[%clk 0:00:02]} 48. Rc6+ {[%clk 0:00:02]}  Kg5 {[%clk 0:00:02]} 49. h6 {[%clk 0:00:02]}  f1=Q {[%clk 0:00:02]} 50. Bxf1 {[%clk 0:00:03]}  Rxf1 {[%clk 0:00:03]} 51. Rd6 {[%clk 0:00:02]}  Bc3 {[%clk 0:00:03]} 0-1


[Site "https://www.chess.com"]